[Event "*** SCC Grand Prix: Titled Tuesday Blitz"]
[Site "Chess.com"]
[Date "2020.06.02"]
[Round "9"]
[White "davekoenig"]
[Black "ehrenfeld"]
[Result "1-0"]
[WhiteElo "2192"]
[BlackElo "2431"]
[TimeControl "180+1"]
[EndTime "11:47:26 PDT"]
[Termination "davekoenig won by resignation"]

1. e4 {[%clk 0:03:00.9]} 1... e5 {[%clk 0:02:59.5]} 2. Nf3 {[%clk 0:03:00.2]}
2... Nc6 {[%clk 0:02:59.3]} 3. d4 {[%clk 0:03:00.3]} 3... exd4 {[%clk
0:02:58.8]} 4. Nxd4 {[%clk 0:03:00.5]} 4... Bc5 {[%clk 0:02:58.3]} 5. Nxc6
{[%clk 0:03:00.3]} 5... bxc6 {[%clk 0:02:57.7]} 6. Bd3 {[%clk 0:02:59.4]} 6...
Qh4 {[%clk 0:02:57.3]} 7. O-O {[%clk 0:02:58.5]} 7... Nf6 {[%clk 0:02:57.4]} 8.
h3 {[%clk 0:02:38.5]} 8... d6 {[%clk 0:02:49.6]} 9. Nd2 {[%clk 0:02:23.9]} 9...
Bxh3 {[%clk 0:02:38.2]} 10. gxh3 {[%clk 0:02:09.4]} 10... Qg3+ {[%clk
0:02:37.2]} 11. Kh1 {[%clk 0:02:09.7]} 11... Qxh3+ {[%clk 0:02:37.6]} 12. Kg1
{[%clk 0:02:10.1]} 12... Ng4 {[%clk 0:02:32.2]} 13. Nf3 {[%clk 0:02:09.8]} 13...
Qg3+ {[%clk 0:02:20]} 14. Kh1 {[%clk 0:02:09.7]} 14... Nxf2+ {[%clk 0:02:16.9]}
15. Rxf2 {[%clk 0:02:09.3]} 15... Qxf2 {[%clk 0:02:16.3]} 16. Bf4 {[%clk
0:02:04.4]} 16... O-O {[%clk 0:02:12.5]} 17. Bh2 {[%clk 0:01:57.3]} 17... Bb6
{[%clk 0:02:06.2]} 18. Ng5 {[%clk 0:01:52.3]} 18... Qh4 {[%clk 0:02:00]} 19. Qd2
{[%clk 0:01:43.6]} 19... Rae8 {[%clk 0:01:53.1]} 20. Rf1 {[%clk 0:01:41.2]}
20... h6 {[%clk 0:01:32.5]} 21. Nf3 {[%clk 0:01:40.4]} 21... Qh5 {[%clk
0:01:31.9]} 22. Qc3 {[%clk 0:01:30.3]} 22... Re6 {[%clk 0:01:24.8]} 23. Qxc6
{[%clk 0:01:27.8]} 23... Rf6 {[%clk 0:01:17.1]} 24. Be2 {[%clk 0:01:24.7]} 24...
Qh3 {[%clk 0:01:15.8]} 25. Qb5 {[%clk 0:00:57.3]} 25... Rg6 {[%clk 0:01:11.8]}
26. Ne1 {[%clk 0:00:57.1]} 26... Bd4 {[%clk 0:01:02.9]} 27. Qd3 {[%clk
0:00:52.7]} 27... Qxd3 {[%clk 0:00:54.2]} 28. Nxd3 {[%clk 0:00:52.7]} 28... Re8
{[%clk 0:00:52]} 29. c3 {[%clk 0:00:51.6]} 29... Rxe4 {[%clk 0:00:36.9]} 30. Bf3
{[%clk 0:00:51.7]} 30... Re3 {[%clk 0:00:36.1]} 31. Nf4 {[%clk 0:00:51.7]} 31...
Rxf3 {[%clk 0:00:23.6]} 32. Rxf3 {[%clk 0:00:49.6]} 32... Rf6 {[%clk 0:00:23.8]}
33. cxd4 {[%clk 0:00:48.9]} 33... g5 {[%clk 0:00:21.9]} 34. Kg2 {[%clk
0:00:43.1]} 34... gxf4 {[%clk 0:00:21.9]} 35. Rxf4 {[%clk 0:00:43.4]} 35... Rg6+
{[%clk 0:00:21.8]} 36. Kf3 {[%clk 0:00:43.1]} 36... Kf8 {[%clk 0:00:21.4]} 37.
Bg3 {[%clk 0:00:39.4]} 37... Ke7 {[%clk 0:00:20.6]} 38. Bh4+ {[%clk 0:00:38.1]}
38... Ke6 {[%clk 0:00:20.6]} 39. d5+ {[%clk 0:00:36.2]} 39... Kxd5 {[%clk
0:00:20.2]} 40. Rxf7 {[%clk 0:00:36.2]} 40... c5 {[%clk 0:00:15.5]} 41. Rxa7
{[%clk 0:00:35.9]} 41... h5 {[%clk 0:00:14.6]} 42. Rh7 {[%clk 0:00:32.9]} 42...
Kc4 {[%clk 0:00:13.4]} 43. Rxh5 {[%clk 0:00:32.5]} 43... d5 {[%clk 0:00:13.3]}
44. Be1 {[%clk 0:00:29.7]} 44... Ra6 {[%clk 0:00:09.5]} 45. b3+ {[%clk
0:00:28.9]} 45... Kd4 {[%clk 0:00:04.7]} 46. Bf2+ {[%clk 0:00:26.5]} 46... Kd3
{[%clk 0:00:02.7]} 47. Rxd5+ {[%clk 0:00:26.3]} 1-0

[Event "*** SCC Grand Prix: Titled Tuesday Blitz"]
[Site "Chess.com"]
[Date "2020.06.02"]
[Round "9"]
[White "FairChess_on_YouTube"]
[Black "MITerryble"]
[Result "1-0"]
[WhiteElo "3006"]
[BlackElo "2815"]
[TimeControl "180+1"]
[EndTime "11:47:27 PDT"]
[Termination "FairChess_on_YouTube won on time"]

1. e4 {[%clk 0:03:00]} 1... e6 {[%clk 0:02:59.1]} 2. d4 {[%clk 0:02:59.4]} 2...
d5 {[%clk 0:02:59.8]} 3. Nc3 {[%clk 0:02:59.8]} 3... Nf6 {[%clk 0:03:00.2]} 4.
e5 {[%clk 0:02:59.8]} 4... Nfd7 {[%clk 0:03:00.6]} 5. f4 {[%clk 0:03:00.3]} 5...
c5 {[%clk 0:03:01.5]} 6. Nf3 {[%clk 0:03:00.6]} 6... Nc6 {[%clk 0:03:02.3]} 7.
Be3 {[%clk 0:03:01]} 7... Be7 {[%clk 0:03:03.2]} 8. Qd2 {[%clk 0:03:00.1]} 8...
O-O {[%clk 0:03:03.4]} 9. dxc5 {[%clk 0:02:57.2]} 9... Qa5 {[%clk 0:03:02.3]}
10. a3 {[%clk 0:02:53.8]} 10... Nxc5 {[%clk 0:03:00.5]} 11. O-O-O {[%clk
0:02:52.1]} 11... Rd8 {[%clk 0:03:00.1]} 12. Nd4 {[%clk 0:02:47.4]} 12... a6
{[%clk 0:02:54.2]} 13. Kb1 {[%clk 0:02:43]} 13... Qc7 {[%clk 0:02:54.1]} 14. h4
{[%clk 0:02:34.5]} 14... b5 {[%clk 0:02:53.5]} 15. h5 {[%clk 0:02:31.8]} 15...
Rb8 {[%clk 0:02:53.4]} 16. Nxc6 {[%clk 0:02:05.8]} 16... Qxc6 {[%clk 0:02:53.4]}
17. f5 {[%clk 0:02:02.5]} 17... b4 {[%clk 0:02:34.3]} 18. axb4 {[%clk
0:02:02.6]} 18... Rxb4 {[%clk 0:02:35.2]} 19. Bg5 {[%clk 0:01:30.2]} 19... Qb7
{[%clk 0:01:58.7]} 20. Bxe7 {[%clk 0:01:20.8]} 20... Rxb2+ {[%clk 0:01:45.7]}
21. Kc1 {[%clk 0:01:16.7]} 21... Nb3+ {[%clk 0:01:44.8]} 22. cxb3 {[%clk
0:01:13.2]} 22... Rxd2 {[%clk 0:01:44.7]} 23. Bxd8 {[%clk 0:01:11.3]} 23...
Rxd1+ {[%clk 0:01:29.6]} 24. Nxd1 {[%clk 0:01:12.2]} 24... Qxb3 {[%clk
0:00:47.2]} 25. Rh3 {[%clk 0:01:08]} 25... Qa2 {[%clk 0:00:47.5]} 26. Rc3 {[%clk
0:00:53.2]} 26... Bd7 {[%clk 0:00:47.8]} 27. Be7 {[%clk 0:00:53.4]} 27... Qa1+
{[%clk 0:00:40.1]} 28. Kd2 {[%clk 0:00:53.5]} 28... exf5 {[%clk 0:00:34.7]} 29.
Bd3 {[%clk 0:00:53.4]} 29... h6 {[%clk 0:00:32.5]} 30. Bd6 {[%clk 0:00:47.5]}
30... Qa4 {[%clk 0:00:24.1]} 31. g3 {[%clk 0:00:42.8]} 31... Qd4 {[%clk
0:00:18.1]} 32. Ne3 {[%clk 0:00:41]} 32... Qa4 {[%clk 0:00:14.9]} 33. Nc2 {[%clk
0:00:37.8]} 33... f4 {[%clk 0:00:08.5]} 34. Ra3 {[%clk 0:00:37.7]} 34... Qc6
{[%clk 0:00:06.2]} 35. gxf4 {[%clk 0:00:37.6]} 35... Qb6 {[%clk 0:00:06]} 36.
Kc1 {[%clk 0:00:29.1]} 36... Qf2 {[%clk 0:00:03.2]} 37. Rxa6 {[%clk 0:00:25.9]}
37... Qxf4+ {[%clk 0:00:03.3]} 38. Kb2 {[%clk 0:00:25.8]} 38... Bf5 {[%clk
0:00:03.7]} 39. e6 {[%clk 0:00:22.8]} 1-0

[Event "*** SCC Grand Prix: Titled Tuesday Blitz"]
[Site "Chess.com"]
[Date "2020.06.02"]
[Round "9"]
[White "PavelShkapenko"]
[Black "mortngabriel"]
[Result "1-0"]
[WhiteElo "2631"]
[BlackElo "2459"]
[TimeControl "180+1"]
[EndTime "11:47:27 PDT"]
[Termination "PavelShkapenko won on time"]

1. e4 {[%clk 0:03:00.9]} 1... c5 {[%clk 0:03:00.3]} 2. c3 {[%clk 0:03:00.8]}
2... d5 {[%clk 0:02:59.3]} 3. exd5 {[%clk 0:03:00.5]} 3... Qxd5 {[%clk
0:03:00.2]} 4. Nf3 {[%clk 0:03:00.7]} 4... Nc6 {[%clk 0:02:53.4]} 5. d4 {[%clk
0:03:00.4]} 5... Bg4 {[%clk 0:02:53.5]} 6. Be2 {[%clk 0:02:57.4]} 6... cxd4
{[%clk 0:02:33.8]} 7. cxd4 {[%clk 0:02:56.5]} 7... e6 {[%clk 0:02:33.8]} 8. O-O
{[%clk 0:02:55.9]} 8... Qa5 {[%clk 0:02:25.6]} 9. h3 {[%clk 0:02:52.3]} 9... Bh5
{[%clk 0:02:25.3]} 10. Qb3 {[%clk 0:02:48.7]} 10... O-O-O {[%clk 0:02:17.8]} 11.
Be3 {[%clk 0:02:45.9]} 11... Nf6 {[%clk 0:02:14.1]} 12. Nbd2 {[%clk 0:02:40.5]}
12... Qb4 {[%clk 0:02:03.6]} 13. Qc2 {[%clk 0:02:35.5]} 13... Bg6 {[%clk
0:02:00.3]} 14. Qc1 {[%clk 0:02:35.5]} 14... Kb8 {[%clk 0:01:44.9]} 15. a3
{[%clk 0:02:29.5]} 15... Qd6 {[%clk 0:01:23.5]} 16. Nc4 {[%clk 0:02:28.4]} 16...
Qd5 {[%clk 0:01:20.1]} 17. Nce5 {[%clk 0:02:08.6]} 17... Rc8 {[%clk 0:01:06.2]}
18. Qd1 {[%clk 0:01:59.3]} 18... Bd6 {[%clk 0:00:55.4]} 19. Bc4 {[%clk
0:01:38.8]} 19... Qa5 {[%clk 0:00:54.8]} 20. b4 {[%clk 0:01:21.4]} 20... Qc7
{[%clk 0:00:54.3]} 21. Rc1 {[%clk 0:01:21.8]} 21... Qe7 {[%clk 0:00:53]} 22. Be2
{[%clk 0:01:18.8]} 22... Be4 {[%clk 0:00:44.5]} 23. Ng5 {[%clk 0:01:11.4]} 23...
Bd5 {[%clk 0:00:44]} 24. Ngxf7 {[%clk 0:01:10.7]} 24... Bxe5 {[%clk 0:00:35.1]}
25. Nxe5 {[%clk 0:01:10]} 25... Rhf8 {[%clk 0:00:19.5]} 26. Qa4 {[%clk
0:00:53.2]} 26... Nd7 {[%clk 0:00:12.3]} 27. b5 {[%clk 0:00:35.6]} 27... Ncxe5
{[%clk 0:00:10.4]} 28. dxe5 {[%clk 0:00:36.1]} 28... Nb6 {[%clk 0:00:11.3]} 29.
Qb4 {[%clk 0:00:33.6]} 29... Qxb4 {[%clk 0:00:09.8]} 30. axb4 {[%clk 0:00:34.2]}
30... Bc4 {[%clk 0:00:10]} 31. Bxc4 {[%clk 0:00:28.3]} 31... Rxc4 {[%clk
0:00:08]} 32. Bxb6 {[%clk 0:00:22]} 32... Rxc1 {[%clk 0:00:07.5]} 33. Bxa7+
{[%clk 0:00:22.3]} 33... Kxa7 {[%clk 0:00:08.4]} 34. Rxc1 {[%clk 0:00:21.6]}
34... Kb6 {[%clk 0:00:09.3]} 35. Rd1 {[%clk 0:00:22.1]} 35... Rf7 {[%clk
0:00:07.3]} 36. Rd6+ {[%clk 0:00:21]} 36... Kxb5 {[%clk 0:00:07.5]} 37. Rxe6
{[%clk 0:00:21.5]} 37... Kxb4 {[%clk 0:00:02.6]} 38. g3 {[%clk 0:00:21.6]} 38...
Kc5 {[%clk 0:00:03.5]} 39. f4 {[%clk 0:00:21.5]} 39... b5 {[%clk 0:00:03.4]} 40.
Re8 {[%clk 0:00:18.1]} 40... g5 {[%clk 0:00:01.3]} 41. e6 {[%clk 0:00:17]} 1-0

[Event "*** SCC Grand Prix: Titled Tuesday Blitz"]
[Site "Chess.com"]
[Date "2020.06.02"]
[Round "9"]
[White "Sam_ChessMood"]
[Black "chargemax23"]
[Result "1-0"]
[WhiteElo "2828"]
[BlackElo "2590"]
[TimeControl "180+1"]
[EndTime "11:47:29 PDT"]
[Termination "Sam_ChessMood won by resignation"]

1. e4 {[%clk 0:03:00.9]} 1... d6 {[%clk 0:02:59.3]} 2. d4 {[%clk 0:03:00.1]}
2... Nf6 {[%clk 0:02:59.2]} 3. Nc3 {[%clk 0:03:00.7]} 3... e5 {[%clk 0:02:58.7]}
4. Nf3 {[%clk 0:02:59.9]} 4... exd4 {[%clk 0:02:56]} 5. Nxd4 {[%clk 0:02:59.5]}
5... Be7 {[%clk 0:02:56.4]} 6. Bf4 {[%clk 0:02:54.5]} 6... O-O {[%clk
0:02:55.8]} 7. Qd2 {[%clk 0:02:54.8]} 7... Nbd7 {[%clk 0:02:49.1]} 8. O-O-O
{[%clk 0:02:51.9]} 8... Nc5 {[%clk 0:02:48.7]} 9. f3 {[%clk 0:02:50.5]} 9... a6
{[%clk 0:02:41.9]} 10. g4 {[%clk 0:02:41.2]} 10... b5 {[%clk 0:02:39]} 11. Kb1
{[%clk 0:02:38]} 11... b4 {[%clk 0:02:36.7]} 12. Nce2 {[%clk 0:02:37.6]} 12...
Bd7 {[%clk 0:02:20.7]} 13. Ng3 {[%clk 0:02:36.3]} 13... Qb8 {[%clk 0:02:05.9]}
14. g5 {[%clk 0:02:33]} 14... Ne8 {[%clk 0:02:04.1]} 15. Ngf5 {[%clk 0:02:33.2]}
15... Bd8 {[%clk 0:02:02.5]} 16. Bc4 {[%clk 0:02:28.5]} 16... a5 {[%clk
0:01:53.4]} 17. h4 {[%clk 0:02:27.4]} 17... Na4 {[%clk 0:01:32.9]} 18. Rdg1
{[%clk 0:02:17.3]} 18... Nb6 {[%clk 0:01:26.6]} 19. Bb5 {[%clk 0:01:35.7]} 19...
Bxb5 {[%clk 0:01:22.7]} 20. Nxb5 {[%clk 0:01:35.8]} 20... a4 {[%clk 0:01:16.9]}
21. Qxb4 {[%clk 0:01:26.5]} 21... a3 {[%clk 0:01:01.6]} 22. b3 {[%clk
0:01:11.3]} 22... c5 {[%clk 0:00:52.1]} 23. Qd2 {[%clk 0:01:11.2]} 23... Na4
{[%clk 0:00:38.5]} 24. Nbxd6 {[%clk 0:00:55.3]} 24... Bc7 {[%clk 0:00:31.8]} 25.
e5 {[%clk 0:00:44.4]} 25... Ba5 {[%clk 0:00:29.6]} 26. Qd3 {[%clk 0:00:42.4]}
26... Nc7 {[%clk 0:00:26]} 27. Nh6+ {[%clk 0:00:33.9]} 27... Kh8 {[%clk
0:00:23.4]} 28. Nhxf7+ {[%clk 0:00:33.6]} 28... Rxf7 {[%clk 0:00:23.8]} 29.
Nxf7+ {[%clk 0:00:33.4]} 29... Kg8 {[%clk 0:00:24.7]} 30. g6 {[%clk 0:00:30.7]}
30... Ne6 {[%clk 0:00:21.3]} 31. gxh7+ {[%clk 0:00:27.9]} 31... Kxf7 {[%clk
0:00:21.7]} 32. Qg6+ {[%clk 0:00:27.6]} 32... Ke7 {[%clk 0:00:21.3]} 33. Bg5+
{[%clk 0:00:27.7]} 33... Kd7 {[%clk 0:00:16.5]} 34. Qf7+ {[%clk 0:00:27.8]}
34... Kc6 {[%clk 0:00:15.4]} 35. Qxe6+ {[%clk 0:00:27.9]} 35... Kb7 {[%clk
0:00:15.8]} 36. bxa4 {[%clk 0:00:19.6]} 36... Ka7+ {[%clk 0:00:14.6]} 37. Qb3
{[%clk 0:00:19.7]} 37... Qxe5 {[%clk 0:00:13.9]} 38. Bf4 {[%clk 0:00:12.1]}
38... Qf6 {[%clk 0:00:12.3]} 39. Rd1 {[%clk 0:00:09.1]} 39... Bb4 {[%clk
0:00:11.5]} 40. Rd7+ {[%clk 0:00:08.7]} 40... Ka6 {[%clk 0:00:10.4]} 41. Rd6+
{[%clk 0:00:08.6]} 1-0

[Event "*** SCC Grand Prix: Titled Tuesday Blitz"]
[Site "Chess.com"]
[Date "2020.06.02"]
[Round "9"]
[White "Matveev_Vladimir"]
[Black "AshotParvanyan"]
[Result "0-1"]
[WhiteElo "2547"]
[BlackElo "2438"]
[TimeControl "180+1"]
[EndTime "11:47:31 PDT"]
[Termination "AshotParvanyan won by resignation"]

1. e4 {[%clk 0:03:00.9]} 1... e6 {[%clk 0:02:58.4]} 2. d4 {[%clk 0:02:59.1]}
2... d5 {[%clk 0:02:58.1]} 3. e5 {[%clk 0:02:59.7]} 3... c5 {[%clk 0:02:57.9]}
4. c3 {[%clk 0:03:00.3]} 4... Nc6 {[%clk 0:02:58.4]} 5. Nf3 {[%clk 0:03:00.7]}
5... Nh6 {[%clk 0:02:58.5]} 6. a3 {[%clk 0:02:47.8]} 6... Nf5 {[%clk 0:02:52.2]}
7. b4 {[%clk 0:02:46.4]} 7... cxd4 {[%clk 0:02:52.5]} 8. cxd4 {[%clk 0:02:47.3]}
8... Bd7 {[%clk 0:02:52.7]} 9. Be3 {[%clk 0:02:39.4]} 9... Nxe3 {[%clk
0:02:52.2]} 10. fxe3 {[%clk 0:02:39.5]} 10... f5 {[%clk 0:02:52.5]} 11. Bd3
{[%clk 0:02:21.4]} 11... g5 {[%clk 0:02:45.9]} 12. h3 {[%clk 0:01:59.7]} 12...
Be7 {[%clk 0:01:44.2]} 13. g4 {[%clk 0:01:55.1]} 13... O-O {[%clk 0:01:42.3]}
14. gxf5 {[%clk 0:01:47.5]} 14... exf5 {[%clk 0:01:43.2]} 15. Nc3 {[%clk
0:01:34.1]} 15... Be6 {[%clk 0:01:43]} 16. Qe2 {[%clk 0:01:15.2]} 16... Rc8
{[%clk 0:01:39.3]} 17. Rc1 {[%clk 0:01:13.9]} 17... Kh8 {[%clk 0:01:24.1]} 18.
Rc2 {[%clk 0:00:40.4]} 18... Qe8 {[%clk 0:00:49.6]} 19. Nb5 {[%clk 0:00:26.7]}
19... a6 {[%clk 0:00:43.9]} 20. Nc3 {[%clk 0:00:21.9]} 20... b5 {[%clk 0:00:38]}
21. Nd2 {[%clk 0:00:16.1]} 21... Qd7 {[%clk 0:00:19.9]} 22. Nb3 {[%clk
0:00:15.1]} 22... a5 {[%clk 0:00:19]} 23. Nc5 {[%clk 0:00:14.6]} 23... Bxc5
{[%clk 0:00:18.1]} 24. bxc5 {[%clk 0:00:15.5]} 24... b4 {[%clk 0:00:15.7]} 25.
Nb5 {[%clk 0:00:15.8]} 25... bxa3 {[%clk 0:00:14.6]} 26. Nd6 {[%clk 0:00:14.4]}
26... Rb8 {[%clk 0:00:13.3]} 27. O-O {[%clk 0:00:13.8]} 27... Nb4 {[%clk
0:00:12.9]} 28. Rd2 {[%clk 0:00:12.2]} 28... a2 {[%clk 0:00:10.8]} 29. Rxa2
{[%clk 0:00:11.3]} 29... Nxa2 {[%clk 0:00:10.2]} 30. Qxa2 {[%clk 0:00:12.2]}
30... f4 {[%clk 0:00:09.3]} 31. h4 {[%clk 0:00:07]} 31... fxe3 {[%clk
0:00:08.3]} 32. hxg5 {[%clk 0:00:07.3]} 32... Rxf1+ {[%clk 0:00:07.4]} 33. Bxf1
{[%clk 0:00:07.8]} 33... Rg8 {[%clk 0:00:07.1]} 34. Bg2 {[%clk 0:00:07]} 34...
Rxg5 {[%clk 0:00:06.3]} 35. Qxa5 {[%clk 0:00:07.2]} 35... Bh3 {[%clk 0:00:05.4]}
36. e6 {[%clk 0:00:06.9]} 36... Rxg2+ {[%clk 0:00:04.6]} 37. Kh1 {[%clk
0:00:06.9]} 37... Qxe6 {[%clk 0:00:04.7]} 38. Qd8+ {[%clk 0:00:07.1]} 38... Rg8
{[%clk 0:00:04.8]} 0-1

[Event "*** SCC Grand Prix: Titled Tuesday Blitz"]
[Site "Chess.com"]
[Date "2020.06.02"]
[Round "9"]
[White "jorquerino"]
[Black "Sweafty"]
[Result "0-1"]
[WhiteElo "2337"]
[BlackElo "2497"]
[TimeControl "180+1"]
[EndTime "11:47:31 PDT"]
[Termination "Sweafty won on time"]

1. e4 {[%clk 0:03:00.9]} 1... d6 {[%clk 0:02:59.6]} 2. d4 {[%clk 0:02:58.5]}
2... Nf6 {[%clk 0:03:00.1]} 3. Nc3 {[%clk 0:02:57.7]} 3... g6 {[%clk 0:03:00.7]}
4. f4 {[%clk 0:02:57.2]} 4... Bg7 {[%clk 0:03:00.8]} 5. e5 {[%clk 0:02:57.6]}
5... c5 {[%clk 0:03:01.3]} 6. exf6 {[%clk 0:02:57]} 6... Bxf6 {[%clk 0:03:00.9]}
7. Be3 {[%clk 0:02:53.1]} 7... O-O {[%clk 0:02:58.9]} 8. Nf3 {[%clk 0:02:51.3]}
8... Qa5 {[%clk 0:02:58.7]} 9. Qd2 {[%clk 0:02:50.1]} 9... Bg4 {[%clk
0:02:58.4]} 10. Be2 {[%clk 0:02:49.3]} 10... Nc6 {[%clk 0:02:58.6]} 11. d5
{[%clk 0:02:44]} 11... Nb4 {[%clk 0:02:58.6]} 12. O-O {[%clk 0:02:35.3]} 12...
Rad8 {[%clk 0:02:57.2]} 13. a3 {[%clk 0:02:27.8]} 13... Na6 {[%clk 0:02:56.9]}
14. h3 {[%clk 0:02:26.4]} 14... Bc8 {[%clk 0:02:56]} 15. Rab1 {[%clk 0:02:02.2]}
15... Qc7 {[%clk 0:02:55.6]} 16. Ne4 {[%clk 0:01:56.7]} 16... Bg7 {[%clk
0:02:55.8]} 17. c4 {[%clk 0:01:56.2]} 17... Nb8 {[%clk 0:02:53.5]} 18. Ng3
{[%clk 0:01:52]} 18... f5 {[%clk 0:02:50.4]} 19. Qe1 {[%clk 0:01:45.4]} 19... a6
{[%clk 0:02:49.6]} 20. Bd2 {[%clk 0:01:44.3]} 20... Nd7 {[%clk 0:02:43.4]} 21.
Bc3 {[%clk 0:01:39.7]} 21... Nf6 {[%clk 0:02:43.9]} 22. Bd3 {[%clk 0:01:37]}
22... b5 {[%clk 0:02:41]} 23. Ba5 {[%clk 0:01:35.9]} 23... Qb7 {[%clk
0:02:38.4]} 24. Bxd8 {[%clk 0:01:35.1]} 24... Rxd8 {[%clk 0:02:39.3]} 25. b3
{[%clk 0:01:34.8]} 25... Re8 {[%clk 0:02:33.7]} 26. Ng5 {[%clk 0:01:33.9]} 26...
e5 {[%clk 0:02:30.4]} 27. Ne6 {[%clk 0:01:24.8]} 27... Bxe6 {[%clk 0:02:29]} 28.
dxe6 {[%clk 0:01:23.4]} 28... e4 {[%clk 0:02:29.6]} 29. Bc2 {[%clk 0:01:15.4]}
29... Rxe6 {[%clk 0:02:30]} 30. Kh1 {[%clk 0:01:08.8]} 30... Re8 {[%clk
0:02:25.8]} 31. Qd2 {[%clk 0:01:06.9]} 31... Rd8 {[%clk 0:02:22.3]} 32. Rfd1
{[%clk 0:00:55.9]} 32... Qf7 {[%clk 0:02:22]} 33. Qe2 {[%clk 0:00:51.7]} 33...
h6 {[%clk 0:02:17.1]} 34. Rd2 {[%clk 0:00:45.9]} 34... h5 {[%clk 0:02:15]} 35.
Rbd1 {[%clk 0:00:42.9]} 35... h4 {[%clk 0:02:15.2]} 36. Nf1 {[%clk 0:00:42.3]}
36... Qe7 {[%clk 0:02:12.7]} 37. Ne3 {[%clk 0:00:36]} 37... Nh5 {[%clk
0:02:11.8]} 38. Qf2 {[%clk 0:00:33]} 38... Ng3+ {[%clk 0:02:11.1]} 39. Kh2
{[%clk 0:00:28]} 39... Bd4 {[%clk 0:02:11.4]} 40. Rxd4 {[%clk 0:00:27.4]} 40...
cxd4 {[%clk 0:02:12.3]} 41. Rxd4 {[%clk 0:00:27.4]} 41... Qa7 {[%clk 0:02:08]}
42. Qd2 {[%clk 0:00:23.3]} 42... Qc7 {[%clk 0:01:48.3]} 43. Kg1 {[%clk
0:00:20.2]} 43... Nh5 {[%clk 0:01:45.6]} 44. Nd5 {[%clk 0:00:19.3]} 44... Qg7
{[%clk 0:01:41.1]} 45. Kf2 {[%clk 0:00:16]} 45... Ng3 {[%clk 0:01:35.8]} 46. Ne3
{[%clk 0:00:15]} 46... Qc7 {[%clk 0:01:29.5]} 47. Qc3 {[%clk 0:00:14.1]} 47...
g5 {[%clk 0:01:22.3]} 48. Nd5 {[%clk 0:00:12.3]} 48... Qa7 {[%clk 0:01:14.9]}
49. Qe3 {[%clk 0:00:07]} 49... gxf4 {[%clk 0:01:10.6]} 50. Nxf4 {[%clk 0:00:06]}
50... bxc4 {[%clk 0:01:08.2]} 51. Ne6 {[%clk 0:00:05.8]} 51... Rd7 {[%clk
0:00:52.6]} 52. Qg5+ {[%clk 0:00:05.6]} 52... Kf7 {[%clk 0:00:53.2]} 53. Nf4
{[%clk 0:00:02.5]} 53... Qxd4+ {[%clk 0:00:53]} 54. Ke1 {[%clk 0:00:02.1]} 54...
Qf6 {[%clk 0:00:42]} 0-1

[Event "*** SCC Grand Prix: Titled Tuesday Blitz"]
[Site "Chess.com"]
[Date "2020.06.02"]
[Round "9"]
[White "OparinGrigoriy"]
[Black "wonderfultime"]
[Result "1-0"]
[WhiteElo "2940"]
[BlackElo "2982"]
[TimeControl "180+1"]
[EndTime "11:47:33 PDT"]
[Termination "OparinGrigoriy won on time"]

1. Nf3 {[%clk 0:03:00.9]} 1... d5 {[%clk 0:03:00]} 2. g3 {[%clk 0:03:01.1]} 2...
Nf6 {[%clk 0:03:00.2]} 3. Bg2 {[%clk 0:03:01.5]} 3... Bg4 {[%clk 0:02:59.2]} 4.
O-O {[%clk 0:03:01.4]} 4... Nbd7 {[%clk 0:02:57.9]} 5. d3 {[%clk 0:02:59.7]}
5... e5 {[%clk 0:02:55.2]} 6. h3 {[%clk 0:02:57.1]} 6... Bh5 {[%clk 0:02:54.5]}
7. c4 {[%clk 0:02:57]} 7... dxc4 {[%clk 0:02:54.1]} 8. dxc4 {[%clk 0:02:57.9]}
8... c6 {[%clk 0:02:54.6]} 9. Nc3 {[%clk 0:02:56.9]} 9... Qc7 {[%clk 0:02:43.8]}
10. Nh4 {[%clk 0:02:57]} 10... Bg6 {[%clk 0:02:39.3]} 11. Nxg6 {[%clk
0:02:47.7]} 11... hxg6 {[%clk 0:02:40.2]} 12. Qc2 {[%clk 0:02:48]} 12... Be7
{[%clk 0:02:34.2]} 13. Rb1 {[%clk 0:02:43.8]} 13... a5 {[%clk 0:02:32.6]} 14. a3
{[%clk 0:02:44]} 14... Nc5 {[%clk 0:02:12.8]} 15. b4 {[%clk 0:02:30.7]} 15...
axb4 {[%clk 0:02:13.7]} 16. axb4 {[%clk 0:02:31.5]} 16... Ne6 {[%clk 0:02:14.2]}
17. e3 {[%clk 0:02:29]} 17... O-O {[%clk 0:02:14.2]} 18. c5 {[%clk 0:02:20.3]}
18... Rfd8 {[%clk 0:02:08.4]} 19. Bb2 {[%clk 0:02:16.6]} 19... Rd7 {[%clk
0:01:53.1]} 20. Rfd1 {[%clk 0:02:14.7]} 20... Rad8 {[%clk 0:01:53]} 21. Rxd7
{[%clk 0:02:14.2]} 21... Rxd7 {[%clk 0:01:53.4]} 22. Rd1 {[%clk 0:02:14.6]}
22... Rxd1+ {[%clk 0:01:49.3]} 23. Qxd1 {[%clk 0:02:14.4]} 23... b6 {[%clk
0:01:49.6]} 24. b5 {[%clk 0:02:11.3]} 24... cxb5 {[%clk 0:01:11.4]} 25. c6
{[%clk 0:02:11.7]} 25... e4 {[%clk 0:01:08.4]} 26. Nxe4 {[%clk 0:02:03.3]} 26...
Nxe4 {[%clk 0:01:08.5]} 27. Bxe4 {[%clk 0:02:04.2]} 27... Nc5 {[%clk 0:01:08.9]}
28. Qd5 {[%clk 0:01:48.4]} 28... Nxe4 {[%clk 0:00:31.3]} 29. Qxe4 {[%clk
0:01:49.3]} 29... Bd6 {[%clk 0:00:32]} 30. Qd4 {[%clk 0:01:20.5]} 30... f6
{[%clk 0:00:32]} 31. Qd5+ {[%clk 0:01:19.7]} 31... Kh7 {[%clk 0:00:32.6]} 32.
Qxb5 {[%clk 0:01:15]} 32... Bc5 {[%clk 0:00:26.8]} 33. Bd4 {[%clk 0:01:11]}
33... Qd6 {[%clk 0:00:21.7]} 34. Qa4 {[%clk 0:00:49.8]} 34... g5 {[%clk
0:00:14.8]} 35. Bxc5 {[%clk 0:00:42.9]} 35... bxc5 {[%clk 0:00:13.1]} 36. Qe4+
{[%clk 0:00:43.1]} 36... g6 {[%clk 0:00:11.2]} 37. Qe8 {[%clk 0:00:28.4]} 37...
Qd1+ {[%clk 0:00:10.8]} 38. Kg2 {[%clk 0:00:28.8]} 38... Qa4 {[%clk 0:00:03.5]}
39. Qe7+ {[%clk 0:00:19.6]} 39... Kh6 {[%clk 0:00:03.3]} 40. Qe8 {[%clk
0:00:17.9]} 40... Kh7 {[%clk 0:00:03]} 41. Qd7+ {[%clk 0:00:17.7]} 41... Kh6
{[%clk 0:00:03.2]} 42. Qd5 {[%clk 0:00:18.2]} 42... c4 {[%clk 0:00:02.1]} 43. c7
{[%clk 0:00:17.4]} 43... Qa6 {[%clk 0:00:02.5]} 44. Qd8 {[%clk 0:00:11.6]} 44...
Qc6+ {[%clk 0:00:02.6]} 45. Kh2 {[%clk 0:00:11.8]} 1-0